[Event "Polish Youth 1st League 2022"]
[Site "Lublin"]
[Date "2022.06.28"]
[Round "4.16"]
[White "Niesporek, Franciszek"]
[Black "Brzezina, Piotr"]
[Result "1/2-1/2"]
[ECO "C50"]
[WhiteElo "1332"]
[BlackElo "1633"]
[Annotator "NA RC"]
[PlyCount "89"]
[EventDate "2022.06.24"]
[EventType "team-tourn"]
[EventCountry "POL"]
[SourceTitle "playchess.com"]
[Source "ChessBase"]
[SourceQuality "1"]
[TimeControl "40/5400+30:1800+30"]

1. e4 {[%emt 0:00:02]} e5 {[%emt 0:00:17]} 2. Nf3 {[%emt 0:00:09]} Nc6 {[%emt 0:00:26]} 3. Bc4 {[%emt 0:00:14]} Bc5 {[%emt 0:00:19]} 4. O-O {[%emt 0:00:12]} Nf6 {[%emt 0:00:24]} 5. d3 {[%emt 0:00:14]} h6 {[%emt 0:01:13]} 6. c3 {[%emt 0:01:58]} d6 {[%emt 0:00:46]} 7. Nbd2 {[%emt 0:07:14]} a5 {[%emt 0:03:41]} 8. a4 {[%emt 0:00:58]} O-O {[%emt 0:00:51]} 9. h3 {[%emt 0:00:35]} Ba7 {[%emt 0:01:10]} 10. Re1 {[%emt 0:02:01]} Ne7 {[%emt 0:02:29]} 11. Nf1 {[%emt 0:00:52]} Ng6 {[%emt 0:00:52]} 12. Ng3 {[%emt 0:01:48]} c6 {[%emt 0:02:09]} 13. Ba2 {[%emt 0:03:43]} Re8 {[%emt 0:06:58]} 14. d4 {[%emt 0:15:29]} Qc7 {[%emt 0:02:21]} 15. Qc2 {[%emt 0:04:05]} Bd7 {[%emt 0:10:57]} 16. Be3 {[%emt 0:03:38]} c5 {[%emt 0:05:55]} 17. dxe5 {[%emt 0:09:31]} dxe5 {[%emt 0:00:16]} 18. Bc4 {[%emt 0:01:05]} Be6 {[%emt 0:04:44]} 19. Bxe6 {[%emt 0:00:40]} fxe6 {[%emt 0:00:24]} 20. c4 {[%emt 0:00:47]} Ne7 {[%emt 0:02:19]} 21. Qc3 {[%emt 0:12:17]} Nc6 {[%emt 0:00:58]} 22. Rad1 {[%emt 0:00:39]} Rad8 {[%emt 0:05:30]} 23. b3 {[%emt 0:03:14]} Nd7 {[%emt 0:03:28]} 24. Nh2 {[%emt 0:07:02]} Nf6 {[%emt 0:02:19]} 25. Ng4 {[%emt 0:01:33]} Nxg4 {[%emt 0:00:06]} 26. hxg4 {[%emt 0:00:05]} Rxd1 {[%emt 0:00:38]} 27. Rxd1 {[%emt 0:00:28]} Rd8 {[%emt 0:00:37]} 28. Qc2 {[%emt 0:10:36]} b6 {[%emt 0:05:08]} 29. Rd3 {[%emt 0:04:41]} Bb8 {[%emt 0:03:29]} 30. Qd2 {[%emt 0:00:47]} Rxd3 {[%emt 0:00:07]} 31. Qxd3 {[%emt 0:00:05]} Qe7 {[%emt 0:02:05]} 32. Qd1 {[%emt 0:03:57]} Nd4 {[%emt 0:01:15]} 33. Ne2 {[%emt 0:02:24]} Bc7 {[%emt 0:06:24]} 34. g3 {[%emt 0:03:06]} Nxe2+ {[%emt 0:07:17]} 35. Qxe2 {[%emt 0:00:06]} g5 {[%emt 0:00:39]} 36. Qd1 {[%emt 0:00:47]} Kf8 {[%emt 0:01:01]} 37. Kg2 {[%emt 0:00:17]} Qd6 {[%emt 0:00:24]} 38. Qxd6+ {[%emt 0:00:54]} Bxd6 {[%emt 0:00:08]} 39. Bd2 {[%emt 0:00:21]} Kf7 {[%emt 0:01:25]} 40. Bc3 {[%emt 0:00:00]} Bc7 {[%emt 0:00:00]} 41. Kf3 {[%emt 0:02:40]} Kf6 {[%emt 0:01:10]} 42. Ke3 {[%emt 0:00:39]} Kg6 {[%emt 0:00:07]} 43. Kf3 {[%emt 0:03:19]} Kf6 {[%emt 0:00:07]} 44. Ke3 {[%emt 0:00:03]} Kg6 {[%emt 0:00:04]} 45. Kf3 {[%emt 0:00:03]} 1/2-1/2

[Event "Polish Youth 1st League 2022"]
[Site "Lublin"]
[Date "2022.06.28"]
[Round "4.17"]
[White "Hertlein, Irena"]
[Black "Bugaj, Hanna"]
[Result "1-0"]
[ECO "B33"]
[WhiteElo "1873"]
[BlackElo "1779"]
[Annotator "NA RC"]
[PlyCount "65"]
[EventDate "2022.06.24"]
[EventType "team-tourn"]
[EventCountry "POL"]
[SourceTitle "playchess.com"]
[Source "ChessBase"]
[SourceQuality "1"]
[TimeControl "40/5400+30:1800+30"]

1. e4 {[%emt 0:00:03]} c5 {[%emt 0:00:08]} 2. Nf3 {[%emt 0:00:06]} Nc6 {[%emt 0:00:07]} 3. d4 {[%emt 0:00:07]} cxd4 {[%emt 0:00:06]} 4. Nxd4 {[%emt 0:00:05]} Nf6 {[%emt 0:00:06]} 5. Nc3 {[%emt 0:00:14]} e5 {[%emt 0:00:08]} 6. Ndb5 {[%emt 0:00:08]} d6 {[%emt 0:00:09]} 7. Bg5 {[%emt 0:00:23]} a6 {[%emt 0:00:15]} 8. Na3 {[%emt 0:00:06]} b5 {[%emt 0:00:09]} 9. Nd5 {[%emt 0:00:24]} Be7 {[%emt 0:00:07]} 10. Bxf6 {[%emt 0:00:07]} Bxf6 {[%emt 0:00:08]} 11. c4 {[%emt 0:00:09]} bxc4 {[%emt 0:02:07]} 12. Bxc4 {[%emt 0:15:44]} O-O {[%emt 0:11:35]} 13. O-O {[%emt 0:05:58]} Rb8 {[%emt 0:04:36]} 14. Rb1 {[%emt 0:09:12]} Kh8 {[%emt 0:09:46]} 15. b4 {[%emt 0:13:36]} Nd4 {[%emt 0:07:50]} 16. Nc2 {[%emt 0:03:43]} Nxc2 {[%emt 0:03:37]} 17. Qxc2 {[%emt 0:00:08]} Bg5 {[%emt 0:00:45]} 18. Qd3 {[%emt 0:16:14]} f5 $14 {[%emt 0:09:20]} 19. f3 {[%emt 0:00:39]} Be6 {[%emt 0:08:07]} 20. a3 {[%emt 0:16:26]} Bh6 {[%emt 0:06:40]} 21. Kh1 {[%emt 0:03:14]} f4 {[%emt 0:11:02]} 22. Bxa6 {[%emt 0:01:57]} g5 {[%emt 0:08:30]} 23. Rbc1 {[%emt 0:12:24]} g4 {[%emt 0:09:37]} 24. Nc7 {[%emt 0:00:10]} Rf6 {[%emt 0:00:50]} 25. Nxe6 {[%emt 0:01:04]} Rxe6 {[%emt 0:00:04]} 26. Rc6 {[%emt 0:00:30]} gxf3 {[%emt 0:01:40]} 27. Qxf3 {[%emt 0:00:11]} Bf8 {[%emt 0:03:49]} 28. Rfc1 {[%emt 0:00:42]} Qf6 {[%emt 0:01:35]} 29. Bc8 {[%emt 0:00:29]} Re8 {[%emt 0:00:27]} 30. Qh5 {[%emt 0:00:38]} Re7 {[%emt 0:00:48]} 31. Bf5 {[%emt 0:00:33]} Rg7 {[%emt 0:01:13]} 32. Rc8 {[%emt 0:00:32]} Rg5 {[%emt 0:00:37]} 33. Qxh7# {[%emt 0:00:08]} 1-0

[Event "Polish Youth 1st League 2022"]
[Site "Lublin"]
[Date "2022.06.28"]
[Round "4.18"]
[White "Sprzeczka, Emilia"]
[Black "Duda, Aleksandra"]
[Result "1/2-1/2"]
[ECO "B38"]
[WhiteElo "1692"]
[BlackElo "1453"]
[Annotator "NA RC"]
[PlyCount "116"]
[EventDate "2022.06.24"]
[EventType "team-tourn"]
[EventCountry "POL"]
[SourceTitle "playchess.com"]
[Source "ChessBase"]
[SourceQuality "1"]
[TimeControl "40/5400+30:1800+30"]

1. e4 {[%emt 0:00:03]} c5 {[%emt 0:00:05]} 2. Nf3 {[%emt 0:00:07]} Nc6 {[%emt 0:00:06]} 3. d4 {[%emt 0:00:06]} cxd4 {[%emt 0:00:04]} 4. Nxd4 {[%emt 0:00:07]} g6 {[%emt 0:00:04]} 5. c4 {[%emt 0:00:13]} Bg7 {[%emt 0:00:17]} 6. Be3 {[%emt 0:00:15]} Nf6 {[%emt 0:00:34]} 7. Nc3 {[%emt 0:00:20]} O-O {[%emt 0:00:38]} 8. Be2 {[%emt 0:00:31]} d6 {[%emt 0:00:46]} 9. O-O {[%emt 0:00:24]} Bd7 {[%emt 0:02:47]} 10. Nc2 {[%emt 0:00:42]} a6 {[%emt 0:03:23]} 11. f3 {[%emt 0:03:14]} Rc8 {[%emt 0:04:17]} 12. Qd2 {[%emt 0:04:23]} Qc7 {[%emt 0:05:23]} 13. Rac1 {[%emt 0:12:25]} Ne5 {[%emt 0:03:59]} 14. b3 {[%emt 0:06:26]} b5 {[%emt 0:05:57]} 15. Nd5 {[%emt 0:05:39]} Nxd5 {[%emt 0:00:59]} 16. cxd5 {[%emt 0:00:26]} Qc3 {[%emt 0:03:41]} 17. Qxc3 {[%emt 0:11:21]} Rxc3 {[%emt 0:00:06]} 18. Bd4 {[%emt 0:01:10]} Rc7 {[%emt 0:01:43]} 19. f4 {[%emt 0:02:58]} Ng4 {[%emt 0:01:05]} 20. Bxg7 {[%emt 0:01:25]} Kxg7 {[%emt 0:00:15]} 21. Nb4 {[%emt 0:10:35]} Rfc8 {[%emt 0:06:41]} 22. Rxc7 {[%emt 0:07:20]} Rxc7 {[%emt 0:00:06]} 23. Bxg4 {[%emt 0:08:33]} Bxg4 {[%emt 0:00:30]} 24. Nc6 {[%emt 0:09:54]} e6 {[%emt 0:07:51]} 25. Re1 {[%emt 0:05:04]} exd5 {[%emt 0:04:31]} 26. exd5 {[%emt 0:00:08]} Kf6 {[%emt 0:05:26]} 27. Kf2 {[%emt 0:01:32]} Bc8 {[%emt 0:04:38]} 28. Ke3 {[%emt 0:01:41]} Bb7 {[%emt 0:02:33]} 29. Kd4 {[%emt 0:00:51]} Rc8 {[%emt 0:08:03]} 30. Re2 {[%emt 0:01:28]} Bxc6 {[%emt 0:01:58]} 31. dxc6 {[%emt 0:00:06]} Rxc6 {[%emt 0:00:06]} 32. Kd5 {[%emt 0:00:08]} Rc1 {[%emt 0:03:14]} 33. Kxd6 {[%emt 0:00:26]} h5 {[%emt 0:00:46]} 34. g3 {[%emt 0:01:30]} Rc3 {[%emt 0:01:29]} 35. Kd5 {[%emt 0:01:15]} Rc1 {[%emt 0:01:17]} 36. Kd4 {[%emt 0:00:58]} Rc6 {[%emt 0:01:30]} 37. h3 {[%emt 0:01:12]} Rc1 {[%emt 0:01:11]} 38. g4 {[%emt 0:01:40]} hxg4 {[%emt 0:00:15]} 39. hxg4 {[%emt 0:00:04]} Rc8 {[%emt 0:00:34]} 40. Re5 {[%emt 0:00:00]} Rc6 {[%emt 0:00:00]} 41. a4 {[%emt 0:05:40]} bxa4 {[%emt 0:07:39]} 42. bxa4 {[%emt 0:00:06]} Kg7 {[%emt 0:01:51]} 43. Kd5 {[%emt 0:02:52]} Rb6 {[%emt 0:02:20]} 44. Kc5 {[%emt 0:01:01]} Rf6 {[%emt 0:04:06]} 45. Re4 {[%emt 0:00:54]} Kf8 {[%emt 0:01:52]} 46. Kb4 {[%emt 0:00:32]} Rc6 {[%emt 0:01:19]} 47. Ka5 {[%emt 0:00:42]} Rd6 {[%emt 0:02:21]} 48. Rb4 {[%emt 0:01:48]} Kg7 {[%emt 0:01:40]} 49. g5 {[%emt 0:01:41]} Re6 {[%emt 0:01:02]} 50. Rb6 {[%emt 0:01:36]} Re4 {[%emt 0:00:17]} 51. Rxa6 {[%emt 0:02:03]} Rxf4 {[%emt 0:00:07]} 52. Rb6 {[%emt 0:00:56]} f6 {[%emt 0:01:35]} 53. Rb7+ {[%emt 0:00:46]} Kf8 {[%emt 0:00:31]} 54. gxf6 {[%emt 0:00:21]} Rxf6 {[%emt 0:00:05]} 55. Rb6 {[%emt 0:00:30]} Ke7 {[%emt 0:01:10]} 56. Rb7+ {[%emt 0:00:40]} Ke6 {[%emt 0:01:00]} 57. Kb6 {[%emt 0:01:18]} Kf5+ {[%emt 0:01:30]} 58. Ka7 {[%emt 0:00:44]} g5 {[%emt 0:00:51]} 1/2-1/2

[Event "Polish Youth 1st League 2022"]
[Site "Lublin"]
[Date "2022.06.28"]
[Round "4.19"]
[White "Suder, Jakub"]
[Black "Szlosarczyk, Hubert"]
[Result "1-0"]
[ECO "C10"]
[WhiteElo "2306"]
[BlackElo "1650"]
[Annotator "TA"]
[PlyCount "151"]
[EventDate "2022.06.24"]
[EventType "team-tourn"]
[EventCountry "POL"]
[SourceTitle "playchess.com"]
[Source "ChessBase"]
[SourceQuality "1"]
[TimeControl "40/5400+30:1800+30"]

{[%evp 20,151,22,33,33,25,29,29,43,19,26,22,26,24,52,35,114,137,124,66,75,12,111,73,70,52,54,53,166,56,106,63,63,64,152,102,110,77,75,59,83,57,50,65,55,61,59,56,47,43,71,55,114,115,165,125,165,165,165,165,164,105,158,88,164,102,126,119,141,128,119,100,99,61,83,84,89,68,68,52,28,83,45,57,28,29,36,36,68,59,74,66,93,93,148,8,8,8,68,8,8,8,8,8,8,8,8,8,8,8,8,8,8,8,8,8,8,8,29969,29970,5439,93,93,93,93,93,93,93,93,45,29982,29983,29983,29983]} 1. e4 {[%emt 0:00:08]} e6 {[%emt 0:00:46]} 2. d4 {[%emt 0:00:07]} d5 {[%emt 0:00:18]} 3. Nd2 {[%emt 0:00:06]} dxe4 {[%emt 0:01:08]} 4. Nxe4 {[%emt 0:00:05]} Nd7 {[%emt 0:01:14]} 5. Nf3 {[%emt 0:00:07]} Ngf6 {[%emt 0:01:49]} 6. Nxf6+ {[%emt 0:00:21]} Nxf6 {[%emt 0:01:47]} 7. Bd3 {[%emt 0:00:17]} Be7 {[%emt 0:01:31]} 8. O-O {[%emt 0:00:10]} O-O {[%emt 0:01:17]} 9. c3 {[%emt 0:00:55]} b6 {[%emt 0:01:55]} 10. Qe2 {[%emt 0:00:15]} Bb7 {[%emt 0:01:15]} 11. Bf4 {[%emt 0:00:59]} c5 {[%emt 0:02:04] C10: French with 3 Nc3: Unusual Black 3rd moves and 3...dxe4.} 12. dxc5 {[%emt 0:00:53]} Bxc5 {[%emt 0:00:55]} 13. Rad1 {[%emt 0:00:44][%cal Od3h7]} Qc8 {[%emt 0:01:45] White has an edge.} 14. Ne5 {[%emt 0:03:56]} Rd8 {[%emt 0:05:26] [#]} 15. Rfe1 $146 {[%emt 0:01:11]} ({Predecessor:} 15. Bg3 Rd5 16. Rfe1 Qe8 17. Bc4 Rxd1 18. Rxd1 a6 19. Bb3 b5 20. Bh4 Nd5 21. Bc2 {1-0 (66) Spasov,V (2595)-Jacimovic,D (2490) Skopje 1998}) 15... a5 {[%emt 0:03:25]} 16. a3 {[%emt 0:03:52]} Be7 {[%emt 0:04:13]} 17. Qe3 {[%emt 0:02:57]} Nd5 {[%emt 0:08:45] [#]} (17... Qc5 $14) 18. Qh3 $1 $16 {[%emt 0:00:31] White is more active.} f5 {[%emt 0:03:12] [#]} 19. Bd2 {[%emt 0:03:55]} (19. Qh5 $1 $16) 19... Bf6 $14 {[%emt 0:05:32]} 20. Nf3 {[%emt 0:05:34]} (20. Qg3 $16) 20... Re8 {[%emt 0:07:26]} (20... Nb4 $1 $11 21. Ng5 h6 22. cxb4 hxg5) 21. Qg3 {[%emt 0:02:57]} Qc7 {[%emt 0:03:26]} 22. Bc2 {[%emt 0:03:32]} Qxg3 {[%emt 0:02:41]} 23. hxg3 {[%emt 0:00:07]} Rad8 {[%emt 0:02:04]} (23... b5 $14) 24. Bc1 {[%emt 0:01:33]} (24. Ba4 $18) 24... Bc6 {[%emt 0:07:07]} (24... Nc7 $14) 25. Nd4 {[%emt 0:02:03]} Bxd4 {[%emt 0:01:07]} 26. Rxd4 {[%emt 0:00:36]} e5 {[%emt 0:01:22]} (26... Kf7 $14) 27. Rdd1 {[%emt 0:00:19]} (27. Rd2 $142 $1) 27... e4 $16 {[%emt 0:02:04]} 28. Rd4 {[%emt 0:02:18]} Rd7 {[%emt 0:02:00]} 29. Red1 {[%emt 0:03:27]} Red8 {[%emt 0:00:32]} 30. g4 {[%emt 0:04:34]} fxg4 {[%emt 0:04:07]} 31. Bxe4 {[%emt 0:02:22] Threatens to win with Bg5.} Ne7 {[%emt 0:01:58] Hoping for ...Rxd4.} 32. Rxd7 {[%emt 0:00:47]} Rxd7 {[%emt 0:00:10]} 33. Rxd7 {[%emt 0:00:09]} Bxd7 $14 {[%emt 0:00:01][%mdl 4096] Endgame KBB-KBN} 34. Kh2 {[%emt 0:01:29]} Nf5 {[%emt 0:05:40]} 35. c4 {[%emt 0:02:24]} Be6 {[%emt 0:03:54]} (35... g6 $14) 36. Bf4 $16 {[%emt 0:01:24]} Nd4 {[%emt 0:03:28]} (36... a4 $16 {was worth a try.} 37. Bc7 g6) 37. Be3 {[%emt 0:02:33]} Nb3 {[%emt 0:01:30]} 38. Bxb6 {[%emt 0:01:38] A strong pair of Bishops.} Bxc4 {[%emt 0:00:08]} 39. Kg3 {[%emt 0:00:54]} Be6 {[%emt 0:02:12]} 40. Bc2 {[%emt 0:00:00]} (40. a4 $18) 40... Kf7 {[%emt 0:00:00]} (40... a4 $142 41. Bd3 Bd7) 41. Kf4 {[%emt 0:02:32]} ({Don't blunder} 41. Bxh7 $2 g6 42. Kf4 Kg7 $19) ({Better is} 41. a4) 41... g6 {[%emt 0:03:32]} (41... h6 $16) 42. Ke5 {[%emt 0:10:07]} (42. Kg5 $18) 42... a4 {[%emt 0:02:35]} 43. Be3 $1 {[%emt 0:01:47]} Ke7 {[%emt 0:03:41]} 44. Bd3 {[%emt 0:01:08]} Na5 {[%emt 0:01:52]} 45. Bg5+ {[%emt 0:02:02]} Kf7 {[%emt 0:00:14]} 46. Kd4 {[%emt 0:00:23]} Nb3+ {[%emt 0:02:54]} 47. Kc3 {[%emt 0:01:18]} Nc5 {[%emt 0:00:01]} 48. Bc2 {[%emt 0:00:37]} Bf5 {[%emt 0:03:41]} 49. Bxf5 {[%emt 0:02:53]} gxf5 $14 {[%emt 0:00:01] KB-KN} 50. Kb4 {[%emt 0:03:31]} Nd3+ {[%emt 0:01:15]} 51. Kxa4 {[%emt 0:00:15] And now b4 would win.} Nxb2+ {[%emt 0:00:50]} 52. Kb5 {[%emt 0:02:29] Strongly threatening a4.} Ke6 $1 {[%emt 0:02:24]} 53. a4 {[%emt 0:01:07][%cal Ba3a4,Ba4a5][%mdl 32]} Kd7 {[%emt 0:00:46]} 54. a5 {[%emt 0:00:32]} Kc7 {[%emt 0:01:10]} 55. Be3 $1 {[%emt 0:02:54]} h5 {[%emt 0:07:59]} 56. g3 {[%emt 0:01:30]} Nd3 {[%emt 0:01:23]} (56... Kb8 $142 57. Kc5 Kb7) 57. Kc4 {[%emt 0:03:24]} (57. a6 $1 $16) 57... Ne1 $1 $11 {[%emt 0:01:02]} 58. Kd5 {[%emt 0:00:53]} Nf3 {[%emt 0:02:23]} (58... Ng2 $1 $11 59. Bg5 f4) 59. Ke6 {[%emt 0:02:29]} (59. a6 $1 $14) 59... h4 $1 {[%emt 0:01:06] White must now prevent ...h3.} 60. gxh4 {[%emt 0:00:10]} ({Don't go for} 60. Kxf5 $2 h3 61. Kxg4 Ng1 $19) 60... Nxh4 {[%emt 0:00:41]} 61. Bf4+ {[%emt 0:05:36]} Kc6 {[%emt 0:00:53]} 62. Bg3 {[%emt 0:00:17]} Ng2 {[%emt 0:01:23]} 63. Kxf5 {[%emt 0:00:12]} Ne1 {[%emt 0:00:15]} 64. Kxg4 {[%emt 0:00:41] aiming for Kf5.} Nd3 {[%emt 0:00:14]} 65. f3 {[%emt 0:00:06]} (65. a6 {is more complex.} Kb6 66. a7 Nxf2+ 67. Kf3) 65... Kb5 {[%emt 0:02:37]} 66. Kf5 {[%emt 0:01:31] Ke4 is the strong threat.} Kxa5 {[%emt 0:00:32]} 67. Ke4 {[%emt 0:00:21]} Nc5+ {[%emt 0:01:37]} 68. Kd5 {[%emt 0:00:07]} Nd7 $2 {[%emt 0:01:39][%mdl 8192] [#]} (68... Nd3 $11) 69. Kd6 $1 {[%emt 0:02:55]} Nb6 {[%emt 0:02:07]} 70. f4 $2 {[%emt 0:01:07]} (70. Bf2 $18 {is the precise move to win.} Nc4+ 71. Kd5) 70... Nc4+ $16 {[%emt 0:00:26]} 71. Ke6 {[%emt 0:00:55] f5 would kill now.} Ne3 {[%emt 0:00:21]} 72. Bf2 {[%emt 0:00:28]} Ng4 {[%emt 0:00:18]} 73. Bd4 {[%emt 0:03:46]} Kb5 {[%emt 0:00:54]} 74. Kf5 {[%emt 0:00:04]} ({White should try} 74. f5 $16) 74... Nh6+ $2 {[%emt 0:01:29][%mdl 8192] [#]} (74... Nh2 $14 75. Ke6 Kc4) 75. Kg6 $1 {[%emt 0:00:17]} Ng8 {[%emt 0:00:13]} 76. Bf6 {[%emt 0:00:26] Weighted Error Value: White=0.25 (precise) /Black=0.21 (precise)} 1-0

[Event "Polish Youth 1st League 2022"]
[Site "Lublin"]
[Date "2022.06.28"]
[Round "4.20"]
[White "Kozlowski, Franciszek"]
[Black "Dziewonski, Dariusz"]
[Result "1/2-1/2"]
[ECO "E06"]
[WhiteElo "1607"]
[BlackElo "1976"]
[Annotator "NA RC"]
[PlyCount "104"]
[EventDate "2022.06.24"]
[EventType "team-tourn"]
[EventCountry "POL"]
[SourceTitle "playchess.com"]
[Source "ChessBase"]
[SourceQuality "1"]
[TimeControl "40/5400+30:1800+30"]

1. d4 {[%emt 0:00:04]} d5 {[%emt 0:00:03]} 2. c4 {[%emt 0:00:07]} e6 {[%emt 0:00:03]} 3. Nf3 {[%emt 0:00:06]} Nf6 {[%emt 0:00:06]} 4. g3 {[%emt 0:00:03]} Be7 {[%emt 0:01:19]} 5. Bg2 {[%emt 0:01:20]} O-O {[%emt 0:00:07]} 6. O-O {[%emt 0:00:04]} dxc4 {[%emt 0:00:02]} 7. Qc2 {[%emt 0:01:21]} a6 {[%emt 0:00:13]} 8. a4 {[%emt 0:00:32]} Bd7 {[%emt 0:00:07]} 9. Ne5 {[%emt 0:01:16]} Bc6 {[%emt 0:09:02]} 10. Nxc6 {[%emt 0:02:38]} Nxc6 {[%emt 0:00:08]} 11. e3 {[%emt 0:00:21]} Na5 {[%emt 0:02:33]} 12. Nd2 {[%emt 0:07:01]} c6 {[%emt 0:04:44]} 13. Nxc4 {[%emt 0:00:46]} Nxc4 {[%emt 0:00:05]} 14. Qxc4 {[%emt 0:00:05]} a5 {[%emt 0:01:44]} 15. Bd2 {[%emt 0:02:54]} Qb6 {[%emt 0:20:11]} 16. b3 {[%emt 0:05:53]} Rfd8 {[%emt 0:02:02]} 17. Bc3 {[%emt 0:02:53]} Rac8 {[%emt 0:06:03]} 18. Rac1 {[%emt 0:07:10]} Ba3 {[%emt 0:08:21]} 19. Ra1 {[%emt 0:06:12]} Be7 {[%emt 0:00:05]} 20. Rac1 {[%emt 0:00:54]} h6 {[%emt 0:03:29]} 21. Rfd1 {[%emt 0:02:31]} Ba3 $5 {[%emt 0:02:54]} 22. Ra1 {[%emt 0:00:58]} Be7 {[%emt 0:00:04]} 23. Rac1 {[%emt 0:00:05]} Nd5 {[%emt 0:04:07]} 24. Bb2 {[%emt 0:08:02]} Kh7 {[%emt 0:04:38]} 25. h4 {[%emt 0:00:58]} h5 {[%emt 0:02:44]} (25... Kg8 $14) 26. Kh1 {[%emt 0:02:17]} g6 {[%emt 0:01:53]} 27. Kg1 {[%emt 0:00:43]} Kg8 {[%emt 0:07:35]} (27... Bf6 $11) 28. Kh1 {[%emt 0:02:58]} Bf6 {[%emt 0:01:24]} 29. Ba3 {[%emt 0:01:03]} Be7 {[%emt 0:01:21]} 30. Bb2 {[%emt 0:00:19]} Qb4 {[%emt 0:02:28]} 31. Bxd5 {[%emt 0:01:50]} exd5 {[%emt 0:01:47]} 32. Qxb4 {[%emt 0:00:21]} axb4 {[%emt 0:01:05]} 33. Rc2 $11 {[%emt 0:00:28]} Kf8 {[%emt 0:02:45]} 34. Ra1 {[%emt 0:00:43]} Ra8 {[%emt 0:00:22]} 35. Re1 {[%emt 0:02:42]} f5 {[%emt 0:02:11]} 36. f3 {[%emt 0:00:31]} Bd6 {[%emt 0:01:35]} 37. Kg2 {[%emt 0:00:13]} Rdc8 {[%emt 0:01:54]} 38. e4 {[%emt 0:00:53]} fxe4 {[%emt 0:03:15]} 39. fxe4 {[%emt 0:00:08]} dxe4 {[%emt 0:01:39]} 40. Rxe4 {[%emt 0:00:00]} Re8 {[%emt 0:00:00]} 41. Rf2+ {[%emt 0:05:30]} Kg8 {[%emt 0:02:13]} 42. Rfe2 {[%emt 0:05:02]} Rxe4 {[%emt 0:01:04]} 43. Rxe4 {[%emt 0:00:06]} Kf7 {[%emt 0:00:37]} 44. Kf3 {[%emt 0:01:57]} Re8 {[%emt 0:08:16]} 45. Rxe8 {[%emt 0:00:25]} Kxe8 {[%emt 0:00:03]} 46. Bc1 {[%emt 0:01:20]} Kf7 {[%emt 0:03:27]} 47. Bf4 {[%emt 0:12:30]} Be7 {[%emt 0:01:02]} 48. Ke4 {[%emt 0:01:05]} Ke6 {[%emt 0:00:32]} 49. Be3 {[%emt 0:03:24]} Bd6 {[%emt 0:00:23]} 50. Bf2 {[%emt 0:00:17]} Bc7 {[%emt 0:04:03]} 51. Be1 {[%emt 0:00:31]} Bd6 {[%emt 0:00:04]} 52. Bf2 {[%emt 0:00:07]} Bc7 {[%emt 0:00:04]} 1/2-1/2

[Event "Polish Youth 1st League 2022"]
[Site "Lublin"]
[Date "2022.06.28"]
[Round "4.21"]
[White "Maj, Samuel"]
[Black "Duda, Szymon"]
[Result "1-0"]
[ECO "A41"]
[WhiteElo "1906"]
[BlackElo "1707"]
[Annotator "RC"]
[PlyCount "118"]
[EventDate "2022.06.24"]
[EventType "team-tourn"]
[EventCountry "POL"]
[SourceTitle "playchess.com"]
[Source "ChessBase"]
[SourceQuality "1"]
[TimeControl "40/5400+30:1800+30"]

1. d4 {[%emt 0:00:02]} d6 {[%emt 0:00:08]} 2. c4 {[%emt 0:00:13]} e5 {[%emt 0:00:13]} 3. d5 {[%emt 0:00:05]} f5 {[%emt 0:00:45]} 4. e4 {[%emt 0:00:06]} Nf6 {[%emt 0:01:35]} 5. exf5 {[%emt 0:02:02]} Bxf5 {[%emt 0:00:53]} 6. Nc3 {[%emt 0:00:41]} Be7 {[%emt 0:02:45]} 7. Nge2 {[%emt 0:01:15]} O-O {[%emt 0:03:43]} 8. Ng3 {[%emt 0:02:14]} Bd7 {[%emt 0:03:32]} 9. f3 {[%emt 0:06:25]} a5 {[%emt 0:02:41]} 10. Be3 {[%emt 0:01:49]} Na6 {[%emt 0:00:59]} 11. Bd3 {[%emt 0:02:56]} Qe8 {[%emt 0:01:31]} 12. O-O {[%emt 0:04:44]} b6 {[%emt 0:07:44]} 13. Bc2 {[%emt 0:05:32]} Nc5 {[%emt 0:06:25]} 14. b3 {[%emt 0:02:39]} Nh5 {[%emt 0:02:48]} 15. Qb1 {[%emt 0:04:37]} Nf6 {[%emt 0:02:58]} 16. a3 {[%emt 0:02:36]} Kh8 {[%emt 0:05:08]} 17. b4 {[%emt 0:04:11]} Nb7 {[%emt 0:02:33]} 18. Qd1 {[%emt 0:04:24]} Qf7 {[%emt 0:03:02]} 19. Qd3 {[%emt 0:01:29]} Qg8 {[%emt 0:02:16]} 20. Rae1 {[%emt 0:04:34]} Rae8 {[%emt 0:01:42]} 21. Re2 {[%emt 0:02:20]} Rf7 {[%emt 0:03:28]} 22. h3 {[%emt 0:01:12]} Ref8 {[%emt 0:02:59]} 23. Rfe1 {[%emt 0:02:00]} g5 {[%emt 0:03:12]} 24. Qd2 {[%emt 0:05:07]} Rg7 {[%emt 0:03:22]} 25. Nf5 {[%emt 0:04:33]} Bxf5 {[%emt 0:08:34]} 26. Bxf5 {[%emt 0:00:10]} h6 {[%emt 0:01:00]} 27. g4 {[%emt 0:02:09]} Ra8 {[%emt 0:02:28]} 28. h4 {[%emt 0:02:20]} Nh7 {[%emt 0:01:44]} 29. Ne4 {[%emt 0:01:19]} Nf6 {[%emt 0:01:49]} 30. hxg5 {[%emt 0:05:56]} Nxe4 {[%emt 0:02:32]} 31. Bxe4 {[%emt 0:01:14]} Bxg5 {[%emt 0:01:21]} 32. Rh2 {[%emt 0:00:41]} Qd8 {[%emt 0:02:35]} 33. Bxg5 {[%emt 0:01:13]} Qxg5 {[%emt 0:00:09]} 34. Rxh6+ {[%emt 0:00:09]} Kg8 {[%emt 0:00:06]} 35. Qh2 {[%emt 0:00:56]} Rf8 {[%emt 0:03:12]} 36. Rh5 {[%emt 0:03:56]} Qd8 {[%emt 0:05:46]} 37. Rh8+ {[%emt 0:01:24]} Kf7 {[%emt 0:00:10]} 38. Qh5+ {[%emt 0:00:50]} Ke7 {[%emt 0:01:13]} 39. Qh6 {[%emt 0:01:46]} Rfg8 {[%emt 0:00:57]} 40. Qe6+ {[%emt 0:00:00]} Kf8 {[%emt 0:00:00]} 41. Rh5 {[%emt 0:08:04]} Qe7 {[%emt 0:04:02]} 42. Qc8+ {[%emt 0:05:00]} Nd8 {[%emt 0:00:27]} 43. Re2 {[%emt 0:00:43]} Qd7 {[%emt 0:02:09]} 44. Qxd7 {[%emt 0:01:49]} Rxd7 {[%emt 0:00:02]} 45. bxa5 {[%emt 0:01:20]} bxa5 {[%emt 0:00:13]} 46. Rb2 {[%emt 0:00:08]} Nf7 {[%emt 0:00:52]} 47. Bf5 {[%emt 0:01:41]} Re7 {[%emt 0:03:37]} 48. Be6 {[%emt 0:02:07]} Rg6 {[%emt 0:01:19]} 49. Rh7 {[%emt 0:03:05]} Rf6 {[%emt 0:02:48]} 50. Rb8+ {[%emt 0:04:03]} Re8 {[%emt 0:00:14]} 51. Rxf7+ {[%emt 0:00:46]} Rxf7 {[%emt 0:00:13]} 52. Rxe8+ {[%emt 0:00:03]} Kxe8 {[%emt 0:00:08]} 53. Bxf7+ {[%emt 0:00:03]} Kxf7 {[%emt 0:00:11]} 54. Kf2 {[%emt 0:00:16]} Kf6 {[%emt 0:00:25]} 55. a4 {[%emt 0:00:40]} Kg6 {[%emt 0:00:21]} 56. Ke3 Kf6 {[%emt 0:01:36]} 57. f4 {[%emt 0:00:31]} exf4+ {[%emt 0:00:06]} 58. Kxf4 {[%emt 0:00:03]} Kg6 {[%emt 0:00:07]} 59. g5 {[%emt 0:00:07]} Kg7 {[%emt 0:00:26]} 1-0